fUSD/lending_fUSD_20251223
["ID","MTS","AMOUNT","RATE_DAILY","PERIOD"]
[399572233,1766508486139,-869.66294326,0.000526,120]
[399572234,1766508486180,-1265.41010203,0.00052611,120]
[399572235,1766508486221,-167.0,0.000527,120]
[399572236,1766508486264,-179.0,0.000527,120]
[399572237,1766508486306,-1964.09120341,0.0005278,120]
[399572238,1766508486346,-429.03922539,0.000528,120]
[399572239,1766508486385,-50000.0,0.0005285,120]
[399572240,1766508486423,-1236.48,0.000529,120]
[399572241,1766508486460,-135507.63390187,0.000529,120]
[399572242,1766508486495,-812.8604509,0.00052999,120]
[399572243,1766508486530,-485.47004754,0.00052999,120]
[399572244,1766508486565,-502.90709501,0.00052999,120]
[399572245,1766508486600,-1000.0,0.00052999,120]
[399572246,1766508486635,-207.82712385,0.00053,120]
[399572247,1766508486669,-150.0,0.00053,120]
[399572248,1766508486703,-200.0,0.00053,120]
[399572249,1766508486736,-2397.80050222,0.00053,120]
[399572250,1766508486772,-1912.0,0.00053,120]
[399572251,1766508486809,-253.0,0.00053,78]
[399572252,1766508486845,-50000.0,0.000531,120]
[399572253,1766508486880,-167.0,0.000533,120]
[399572254,1766508486918,-179.0,0.000533,120]
[399572255,1766508486952,-235.25711393,0.00053347,120]
[399572256,1766508486989,-50000.0,0.0005335,120]
[399572257,1766508487024,-229.56770692,0.000534,120]
[399572258,1766508487063,-2000.0,0.00053424,120]
[399572259,1766508487102,-4000.0,0.00053456,60]
[399572260,1766508487143,-50000.0,0.000536,120]
[399572261,1766508487183,-249.90245337,0.000538,120]
[399572262,1766508487223,-500.0,0.000538,120]
[399572263,1766508487267,-167.0,0.000538,120]
[399572264,1766508487310,-179.0,0.000538,120]
[399572265,1766508487349,-1101.43694044,0.0005385,120]
[399572266,1766508487389,-50000.0,0.0005385,120]
[399572267,1766508487427,-3001.0,0.0005386,76]
[399572268,1766508487465,-2746.281,0.00053949,87]
[399572269,1766508487501,-1000.0,0.00053999,120]
[399572270,1766508487536,-5000.0,0.00054,120]
[399572271,1766508487571,-5161.0,0.00054,120]
[399572272,1766508487606,-1058.77443573,0.00054,120]
[399572273,1766508487640,-22700.01,0.00054,120]
[399572274,1766508487674,-200.0,0.00054,120]
[399572275,1766508487710,-8089.69545535,0.00054,120]
[399572276,1766508487745,-58596.22315203,0.00054,120]
[399572277,1766508487780,-1242.51220921,0.00054,120]
[399572278,1766508487814,-1635.33453079,0.00054,120]
[399572279,1766508487849,-194797.89695597,0.00054,120]
[399572280,1766508487883,-200.0,0.00054,120]
[399572281,1766508487918,-6356.89792851,0.00054,120]
[399572282,1766508488170,-5700.0,0.00054,120]
[399572283,1766508488219,-1540.83105108,0.00054,120]
[399572284,1766508488269,-3196.32247396,0.00054,120]
[399572285,1766508488316,-395.3994733,0.00054,120]
[399572286,1766508488358,-253.0,0.00054,81]
[399572287,1766508488401,-50000.0,0.000541,120]
[399572288,1766508488450,-2468.59,0.00054247,120]
[399572289,1766508488493,-50000.0,0.0005435,120]
[399572290,1766508488537,-167.0,0.000544,120]
[399572291,1766508488582,-179.0,0.000544,120]
[399572292,1766508488625,-4000.0,0.00054416,120]
[399572293,1766508488666,-1000.0,0.00054443,120]
[399572294,1766508488705,-11309.98422035,0.00054449,120]
[399572295,1766508488744,-18984.45803773,0.00054451,120]
[399572296,1766508488783,-17672.94065479,0.00054453,120]
[399572297,1766508488823,-116835.04175323,0.00054475,120]
[399572298,1766508488863,-420089.60980503,0.00054482,120]
[399572299,1766508488901,-5538.81418157,0.00054484,120]
[399572300,1766508488940,-7051.16554217,0.00054498,120]
[399572301,1766508488981,-3588542.01045475,0.000545,60]
[399572302,1766508489026,-1433954.16095661,0.000545,60]
[399572303,1766508489071,-350824.48981809,0.000545,60]
[399572304,1766508489116,-1771459.97408049,0.000545,60]
[399572305,1766508489161,-4504.14126226,0.000546,120]
[399572306,1766508489206,-50000.0,0.000546,120]
[399572307,1766508489251,-51829.709097,0.0005466,60]
[399572308,1766508489293,-2127.18,0.000547,120]
[399572309,1766508489337,-455.39080846,0.00054767,120]
[399572311,1766508489378,-1000.0,0.00054794,120]
[399572312,1766508489418,-888.0,0.00054794,120]
[399572313,1766508489458,-888.0,0.00054794,120]
[399572314,1766508489498,-888.0,0.00054794,120]
[399572315,1766508489538,-888.0,0.00054794,120]
[399572316,1766508489577,-888.0,0.00054794,120]
[399572317,1766508489615,-888.0,0.00054794,120]
[399572318,1766508489651,-888.0,0.00054794,120]
[399572319,1766508489686,-888.0,0.00054794,120]
[399572320,1766508489720,-689.0986109,0.00054794,120]
[399572321,1766508489755,-500.0,0.00054794,120]
[399572322,1766508489789,-2000.0,0.00054794,120]
[399572323,1766508489825,-430477.30707907,0.00054795,120]
[399572324,1766508489862,-2749.677,0.00054795,120]
[399572325,1766508489898,-150.1,0.00054795,120]
[399572326,1766508489933,-537.7077508,0.000548,120]
[399572327,1766508489966,-2020.0,0.0005482,71]
[399572328,1766508490007,-50000.0,0.0005485,120]
[399572329,1766508490045,-254.84846234,0.00054889,120]
[399572330,1766508490085,-167.0,0.000549,120]
[399572331,1766508490124,-179.0,0.000549,120]
[399572332,1766508490160,-157.87900795,0.000549,120]
[399572333,1766508490198,-3943.21608428,0.0005495,120]
[399572334,1766508490236,-214.83788324,0.00055,120]
[399572335,1766508490273,-160.39470114,0.00055,120]
[399572336,1766508490312,-2272.03356396,0.00055,120]
[399572337,1766508490350,-2500.0,0.00055,120]
[399572338,1766508490387,-150.0,0.00055,120]
[399572339,1766508490424,-300.0,0.00055,120]
[399572340,1766508490460,-40204.2192195,0.00055,60]
[399572341,1766508490496,-200.16079781,0.00055,120]
[399572342,1766508490531,-542.0,0.00055,90]
[399572343,1766508490564,-1249.49860118,0.00055,120]
[399572344,1766508490598,-270.0,0.00055,60]
[399572345,1766508490634,-70000.0,0.00055,120]
[399572346,1766508490668,-200.0,0.00055,120]
[399572347,1766508490701,-5083.53715474,0.00055,120]
[399572348,1766508490735,-664.43,0.00055,120]
[399572349,1766508490769,-6727.10703141,0.00055,120]
[399572350,1766508490803,-478.6371958,0.00055,120]
[399572351,1766508490836,-2765.0,0.00055,120]
[399572352,1766508490871,-281.34,0.00055,120]
[399572353,1766508490904,-166.17,0.00055,120]
[399572354,1766508490939,-1132.32,0.00055,120]
[399572355,1766508490977,-260.12473654,0.00055,120]
[399572356,1766508491014,-270.12,0.00055,120]
[399572357,1766508491054,-8589.33,0.00055,120]
[399572358,1766508491088,-2040.24539475,0.00055,120]
[399572359,1766508491122,-226.74,0.00055,120]
[399572360,1766508491157,-249.79,0.00055,120]
[399572361,1766508491193,-276.403704,0.00055,100]
[399572362,1766508491229,-3899.09591376,0.00055,120]
[399572363,1766508491263,-253.0,0.00055,85]
[399572364,1766508491298,-50000.0,0.000551,120]
[399572365,1766508491336,-1098.0,0.00055114,120]
[399572366,1766508491376,-50000.0,0.0005535,120]
[399572367,1766508491415,-4733611.35311013,0.000555,120]
[399572368,1766508506854,-435.637688,0.00039,120]
[399572369,1766508506894,-435.637688,0.00039,120]
[399572370,1766508506932,-435.637688,0.00039,120]
[399572371,1766508506968,-435.637688,0.00039,120]
[399572372,1766508507010,-435.637688,0.00039,120]
[399572373,1766508507052,-435.637688,0.00039,120]
[399572374,1766508507092,-435.637688,0.00039,120]
[399572375,1766508507133,-172.839453,0.00039,120]
[399572376,1766508507175,-435.637692,0.00039,120]
[399572377,1766508507212,-172.839453,0.00039,120]
[399572378,1766508507250,-384.405635,0.00039,120]
[399572379,1766508507287,-384.405635,0.00039,120]
[399572380,1766508507323,-172.839453,0.00039,120]
[399572381,1766508507360,-172.839453,0.00039,120]
[399572382,1766508507399,-153.35469642,0.000399,120]
[399572383,1766508509602,-1108.0,0.00050689,120]
[399572384,1766508509642,-1108.0,0.00050689,120]
[399572385,1766508509685,-1108.0,0.00050689,120]
[399572386,1766508509721,-1108.0,0.00050689,120]
[399572387,1766508509758,-1108.0,0.00050689,120]
[399572388,1766508509793,-600.0,0.0005069,120]
[399572389,1766508509828,-600.0,0.00050964,120]
[399572390,1766508509864,-600.0,0.00051238,120]
[399572391,1766508509899,-600.0,0.00051512,120]
[399572392,1766508509934,-600.0,0.00051786,120]
[399572393,1766508509968,-600.0,0.0005206,120]
[399572394,1766508510006,-600.0,0.00052334,120]
[399572395,1766508510052,-266388.64688987,0.000555,120]
[399572396,1766508510088,-367.0,0.000555,120]
[399572397,1766508510124,-675.98505027,0.000555,120]
[399572398,1766508510163,-167.0,0.000555,120]
[399572399,1766508510200,-179.0,0.000555,120]
[399572400,1766508510239,-50000.0,0.000556,120]
[399572401,1766508510275,-163.19907915,0.0005566,120]
[399572402,1766508510313,-3000.0,0.0005568,71]
[399572403,1766508510352,-3053.51434832,0.0005568,73]
[399572404,1766508510391,-4432.06012223,0.00055827,120]
[399572405,1766508510428,-677.13,0.00055831,120]
[399572406,1766508510464,-2538.36941571,0.00055842,120]
[399572407,1766508510502,-50000.0,0.0005585,120]
[399572408,1766508510542,-1000.0,0.00055999,120]
[399572409,1766508510579,-200.0,0.00056,120]
[399572410,1766508510617,-150.0,0.00056,120]
[399572411,1766508510653,-300.0,0.00056,120]
[399572412,1766508510690,-200.0,0.00056,120]
[399572413,1766508510726,-167.0,0.00056,120]
[399572414,1766508510763,-179.0,0.00056,120]
[399572415,1766508510799,-253.0,0.00056,89]
[399572416,1766508510835,-1100.0,0.00056,120]
[399572417,1766508510873,-3196.32247396,0.00056,120]
[399572418,1766508510931,-50000.0,0.000561,120]
[399572419,1766508510968,-738.51606981,0.00056164,120]
[399572420,1766508511010,-50000.0,0.0005635,120]
[399572421,1766508511048,-8536.0,0.000566,120]
[399572422,1766508511082,-15932.91689728,0.000566,120]
[399572423,1766508511117,-50000.0,0.000566,120]
[399572424,1766508511157,-167.0,0.000566,120]
[399572425,1766508511197,-179.0,0.000566,120]
[399572426,1766508511236,-100615.34910431,0.000568,120]
[399572427,1766508511279,-2725.27,0.00056813,120]
[399572428,1766508511317,-8000.0,0.00056842,120]
[399572429,1766508511355,-50000.0,0.0005685,120]
[399572430,1766508511391,-3000.0,0.0005685,73]
[399572431,1766508511428,-2033.0,0.0005686,75]
[399572432,1766508511462,-12754.65455855,0.000569,120]
[399572433,1766508511498,-1000.0,0.00056999,120]
[399572434,1766508511533,-150.0,0.00057,120]
[399572435,1766508511570,-300.0,0.00057,120]
[399572436,1766508511607,-200.0,0.00057,120]
[399572437,1766508511643,-253.0,0.00057,92]
[399572438,1766508511687,-50000.0,0.000571,120]
[399572439,1766508511725,-167.0,0.000571,120]
[399572440,1766508511763,-179.0,0.000571,120]
[399572441,1766508511799,-50000.0,0.0005735,120]
[399572442,1766508511837,-540246.74678235,0.00057524,60]
[399572443,1766508511875,-1000100.0,0.00057524,60]
[399572444,1766508511912,-1753960.7089073,0.00057524,60]
[399572445,1766508511952,-583805.57946363,0.00057524,60]
[399572446,1766508511994,-600.0,0.00057534,60]
[399572447,1766508512040,-600.0,0.00057534,60]
[399572448,1766508512083,-600.0,0.00057534,60]
[399572449,1766508512125,-600.0,0.00057534,60]
[399572450,1766508512166,-600.0,0.00057534,60]
[399572451,1766508512207,-626.09423231,0.00057534,60]
[399572452,1766508512246,-414.0,0.00057534,60]
[399572453,1766508512285,-429.318,0.00057534,60]
[399572454,1766508512324,-445.202766,0.00057534,60]
[399572455,1766508512364,-461.67526834,0.00057534,60]
[399572456,1766508512403,-614.98237894,0.00057534,60]
[399572457,1766508512440,-500.84177694,0.00057534,60]
[399572458,1766508512477,-200.0,0.00057534,60]
[399572459,1766508512516,-151.0,0.00057534,60]
[399572460,1766508512552,-151.0,0.00057534,60]
[399572461,1766508512594,-151.0,0.00057534,60]
[399572462,1766508512644,-151.0,0.00057534,60]
[399572463,1766508512692,-500.0,0.00057534,60]
[399572464,1766508512736,-151.0,0.00057534,60]
[399572465,1766508512781,-500.0,0.00057534,60]
[399572466,1766508512823,-151.0,0.00057534,60]
[399572467,1766508512867,-500.0,0.00057534,60]
[399572468,1766508513120,-151.0,0.00057534,60]
[399572470,1766508513168,-500.0,0.00057534,60]
[399572472,1766508513212,-151.0,0.00057534,60]
[399572473,1766508513255,-500.0,0.00057534,60]
[399572474,1766508513295,-151.0,0.00057534,60]
[399572475,1766508513336,-500.0,0.00057534,60]
[399572476,1766508513378,-157.8410325,0.00057534,60]
[399572477,1766508513420,-151.0,0.00057534,60]
[399572478,1766508513464,-500.0,0.00057534,60]
[399572479,1766508513508,-151.0,0.00057534,60]
[399572480,1766508513548,-500.0,0.00057534,60]
[399572481,1766508513586,-200.0,0.00057534,60]
[399572482,1766508513624,-500.0,0.00057534,60]
[399572483,1766508513661,-151.0,0.00057534,60]
[399572484,1766508513697,-500.0,0.00057534,60]
[399572485,1766508513733,-500.0,0.00057534,60]
[399572486,1766508513769,-151.0,0.00057534,60]
[399572487,1766508513806,-500.0,0.00057534,60]
[399572488,1766508513847,-500.0,0.00057534,60]
[399572489,1766508513886,-151.0,0.00057534,60]
[399572490,1766508513925,-500.0,0.00057534,60]
[399572491,1766508513961,-300.0,0.00057534,60]
[399572492,1766508513999,-500.0,0.00057534,60]
[399572493,1766508514037,-500.0,0.00057534,60]
[399572494,1766508514075,-151.0,0.00057534,60]
[399572495,1766508514112,-311.1,0.00057534,60]
[399572496,1766508514157,-500.0,0.00057534,60]
[399572497,1766508514201,-322.6107,0.00057534,60]
[399572498,1766508514247,-500.0,0.00057534,60]
[399572499,1766508514291,-151.0,0.00057534,60]
[399572500,1766508514333,-334.5472959,0.00057534,60]
[399572501,1766508514377,-500.0,0.00057534,60]
[399572502,1766508514420,-151.0,0.00057534,60]
[399572503,1766508514460,-346.92554585,0.00057534,60]
[399572504,1766508514505,-500.0,0.00057534,60]
[399572505,1766508514546,-151.0,0.00057534,60]
[399572506,1766508514584,-359.76179104,0.00057534,60]
[399572507,1766508514624,-587.07832485,0.00057534,60]
[399572508,1766508514665,-151.0,0.00057534,60]
[399572509,1766508514704,-373.07297731,0.00057534,60]
[399572510,1766508514745,-151.0,0.00057534,60]
[399572511,1766508514784,-386.87667747,0.00057534,60]
[399572512,1766508514820,-401.19111454,0.00057534,60]
[399572513,1766508514857,-416.03518578,0.00057534,60]
[399572514,1766508514893,-431.42848765,0.00057534,60]
[399572515,1766508514929,-447.3913417,0.00057534,60]
[399572516,1766508514967,-463.94482134,0.00057534,60]
[399572517,1766508515010,-481.11077973,0.00057534,60]
[399572518,1766508515052,-498.91187858,0.00057534,60]
[399572519,1766508515092,-517.37161808,0.00057534,60]
[399572520,1766508515133,-380.36250684,0.00057534,60]
[399572521,1766508515786,384.405635,0.00039,120]
[399572522,1766508515855,384.405635,0.00039,120]
[399572523,1766508516159,172.839453,0.00039,120]
[399572524,1766508516236,172.839453,0.00039,120]
[399572525,1766508516368,151.0,0.00039,120]
[399572526,1766508516420,384.405635,0.00039,120]
[399572527,1766508516483,151.0,0.00039,120]
[399572528,1766508516535,172.839453,0.00039,120]
[399572529,1766508516600,172.839454,0.00039,120]
[399572530,1766508516654,153.35469641,0.000399,120]
[399572531,1766508516715,151.0,0.00039,120]
[399572532,1766508516769,151.0,0.00039,120]
[399572533,1766508516863,3198.325177,0.00039,120]
[399572534,1766508516910,460.81990723,0.000556,120]
[399572535,1766508516953,151.0,0.000556,120]
[399572536,1766508517025,3198.325177,0.00039,120]
[399572537,1766508517109,151.0,0.00039,120]
[399572538,1766508517161,600.0,0.00052608,120]
[399572539,1766508517214,151.0,0.00039,120]
[399572540,1766508517275,151.0,0.00039,120]
[399572541,1766508517332,151.0,0.00039,120]
[399572542,1766508517390,500.0,0.00055499,120]
[399572543,1766508517450,500.0,0.00055499,120]
[399572544,1766508517509,500.0,0.00055499,120]
[399572545,1766508517568,500.0,0.00055499,120]
[399572546,1766508517990,500.0,0.00055499,120]
[399572547,1766508518054,500.0,0.00055499,120]
[399572548,1766508518113,3198.325177,0.00039,120]
[399572549,1766508518198,500.0,0.00055499,120]
[399572550,1766508518260,600.0,0.00052882,120]
[399572551,1766508518312,500.0,0.00055499,120]
[399572552,1766508518384,3198.325177,0.00039,120]
[399572553,1766508518439,500.0,0.00055499,120]
[399572554,1766508518507,500.0,0.00055499,120]
[399572555,1766508518576,500.0,0.00055499,120]
[399572556,1766508518636,500.0,0.00055499,120]
[399572557,1766508518713,500.0,0.00055499,120]
[399572558,1766508518783,500.0,0.00055499,120]
[399572559,1766508518849,531.35954201,0.00055499,120]
[399572560,1766508518918,500.0,0.00055499,120]
[399572561,1766508518970,403.515052,0.00039,120]
[399572562,1766508519030,3198.325177,0.00039,120]
[399572563,1766508519108,500.0,0.00055499,120]
[399572564,1766508519177,600.0,0.00053156,120]
[399572565,1766508519239,403.515052,0.00039,120]
[399572566,1766508519301,500.0,0.00055499,120]
[399572567,1766508519360,3198.325177,0.00039,120]
[399572568,1766508519415,153.35469641,0.000399,120]
[399572569,1766508519473,183.29776572,0.00055499,120]
[399572570,1766508519529,384.405635,0.00039,120]
[399572571,1766508519643,600.0,0.0005343,120]
[399572572,1766508519702,3198.325177,0.00039,120]
[399572573,1766508519754,403.515052,0.00039,120]
[399572574,1766508519800,384.405635,0.00039,120]
[399572575,1766508519854,3198.325176,0.00039,120]
[399572576,1766508519903,403.515052,0.00039,120]
[399572577,1766508519962,384.405626,0.00039,120]
[399572579,1766508538286,-403.515052,0.00039,120]
[399572580,1766508538330,-151.0,0.00039,120]
[399572581,1766508538373,-403.515052,0.00039,120]
[399572582,1766508538414,-151.0,0.00039,120]
[399572583,1766508538456,-403.515052,0.00039,120]
[399572584,1766508538499,-151.0,0.00039,120]
[399572585,1766508538539,-403.515054,0.00039,120]
[399572586,1766508538579,-151.0,0.00039,120]
[399572587,1766508538616,-151.0,0.00039,120]
[399572588,1766508538652,-151.0,0.00039,120]
[399572589,1766508538688,-151.0,0.00039,120]
[399572590,1766508538742,-151.0,0.00039,120]
[399572591,1766508538778,-151.0,0.00039,120]
[399572592,1766508538815,-271.522324,0.00039,120]
[399572593,1766508538853,-642.533456,0.00039,120]
[399572594,1766508538890,-642.533456,0.00039,120]
[399572595,1766508538928,-642.533456,0.00039,120]
[399572596,1766508538966,-642.533456,0.00039,120]
[399572597,1766508539009,-642.533456,0.00039,120]
[399572598,1766508539051,-642.533456,0.00039,120]
[399572599,1766508539095,-642.533456,0.00039,120]
[399572600,1766508539135,-642.533458,0.00039,120]
[399572601,1766508540499,-600.0,0.00053704,120]
[399572602,1766508540540,-600.0,0.00053978,120]
[399572603,1766508541004,-600.0,0.00054252,120]
[399572604,1766508541049,-600.0,0.00054526,120]
[399572605,1766508541092,-600.0,0.000548,120]
[399572606,1766508541135,-1949.54795688,0.00055,120]
[399572607,1766508541177,-600.0,0.00055074,120]
[399572608,1766508541220,-50000.0,0.000576,120]
[399572609,1766508541263,-167.0,0.000577,120]
[399572610,1766508541306,-179.0,0.000577,120]
[399572611,1766508541347,-2000.0,0.000577,90]
[399572612,1766508541389,-133445.0,0.0005777,120]
[399572613,1766508541432,-50000.0,0.0005785,120]
[399572614,1766508541469,-2032.59414348,0.0005786,72]
[399572615,1766508541505,-1098.0,0.0005787,120]
[399572616,1766508541543,-8000.0,0.00057891,120]
[399572617,1766508541580,-25000.0,0.000579,120]
[399572618,1766508541616,-1000.0,0.00057999,120]
[399572619,1766508541659,-200.0,0.00058,120]
[399572620,1766508541696,-1000.0,0.00058,120]
[399572621,1766508541734,-300.0,0.00058,120]
[399572622,1766508541770,-200.0,0.00058,120]
[399572623,1766508541806,-147393.5908627,0.00058,120]
[399572624,1766508541842,-253.0,0.00058,96]
[399572625,1766508541880,-50000.0,0.000581,120]
[399572626,1766508541917,-167.0,0.000582,120]
[399572627,1766508541956,-179.0,0.000582,120]
[399572628,1766508541995,-2000.0,0.000583,120]
[399572629,1766508542038,-50000.0,0.0005835,120]
[399572630,1766508542076,-1444.0,0.00058356,90]
[399572631,1766508542115,-50000.0,0.000586,120]
[399572632,1766508542154,-2469.78170475,0.00058631,120]
[399572633,1766508542195,-2019.0,0.0005864,72]
[399572634,1766508542235,-167.0,0.000588,120]
[399572635,1766508542278,-179.0,0.000588,120]
[399572636,1766508542324,-50000.0,0.0005885,120]
[399572637,1766508542364,-8000.0,0.00058869,120]
[399572638,1766508542403,-51885.569089,0.0005888,60]
[399572639,1766508542441,-51053.012363,0.0005888,90]
[399572640,1766508542479,-25000.0,0.000589,120]
[399572641,1766508542517,-862.89297914,0.000589,120]
[399572642,1766508542553,-160000.0,0.0005899,120]
[399572643,1766508542588,-160000.0,0.0005899,120]
[399572644,1766508542623,-83746.09963023,0.0005899,120]
[399572645,1766508542658,-1000.0,0.00058999,120]
[399572646,1766508542695,-150.0,0.00059,120]
[399572647,1766508542731,-330.0,0.00059,120]
[399572648,1766508542774,-1000.0,0.00059,120]
[399572649,1766508542814,-300.0,0.00059,120]
[399572650,1766508542854,-392.79610005,0.00059,120]
[399572651,1766508542893,-20000.01,0.00059,120]
[399572652,1766508542932,-1500.13941617,0.00059,120]
[399572653,1766508542971,-4037.82597978,0.00059,120]
[399572654,1766508543017,-200.0,0.00059,120]
[399572655,1766508543066,-21682.93546594,0.00059,120]
[399572656,1766508543112,-10663.28581955,0.00059,61]
[399572657,1766508543158,-253.0,0.00059,100]
[399572658,1766508543206,-50000.0,0.000591,120]
[399572659,1766508543254,-167.0,0.000593,120]
[399572660,1766508543302,-179.0,0.000593,120]
[399572661,1766508543349,-50000.0,0.0005935,120]
[399572662,1766508543397,-50000.0,0.000596,120]
[399572663,1766508543443,-19465.5902825,0.000598,120]
[399572664,1766508543489,-50000.0,0.0005985,120]
[399572665,1766508543533,-248.44863349,0.0005989,120]
[399572666,1766508543577,-1252.85230501,0.000599,120]
[399572667,1766508543621,-167.0,0.000599,120]
[399572668,1766508543666,-179.0,0.000599,120]
[399572669,1766508543710,-1000.0,0.00059999,120]
[399572670,1766508543756,-50000.0,0.0006,60]
[399572671,1766508543802,-1000.0,0.0006,120]
[399572672,1766508543848,-2000.0,0.0006,120]
[399572673,1766508543894,-262.27574884,0.0006,120]
[399572674,1766508543940,-200.0,0.0006,120]
[399572675,1766508543987,-486.83366899,0.0006,120]
[399572676,1766508544036,-10000.0,0.0006,120]
[399572677,1766508544083,-150.0,0.0006,120]
[399572678,1766508544128,-150.0,0.0006,120]
[399572679,1766508544175,-300.0,0.0006,120]
[399572680,1766508544222,-200.0,0.0006,120]
[399572681,1766508544269,-6311.08991741,0.0006,120]
[399572682,1766508544316,-117716.77736031,0.0006,120]
[399572683,1766508544361,-257.32646252,0.0006,120]
[399572684,1766508544405,-25000.0,0.0006,120]
[399572685,1766508544450,-200.0,0.0006,120]
[399572686,1766508544494,-632.50543377,0.0006,60]
[399572687,1766508544539,-1878.0,0.0006,120]
[399572688,1766508544584,-2371429.03099345,0.0006,120]
[399572689,1766508544627,-10000.0,0.0006,120]
[399572690,1766508544672,-6088.0,0.0006,120]
[399572691,1766508544717,-664.43,0.0006,120]
[399572692,1766508544761,-810.18211215,0.0006,120]
[399572693,1766508544804,-6589.5886951,0.0006,120]
[399572694,1766508544847,-35605.60014476,0.0006,120]
[399572695,1766508544891,-1644.89507961,0.0006,120]
[399572696,1766508544935,-281.34,0.0006,120]
[399572697,1766508544978,-166.17,0.0006,120]
[399572698,1766508545241,-1132.32,0.0006,120]
[399572699,1766508545284,-270.12,0.0006,120]
[399572700,1766508545327,-8589.33,0.0006,120]
[399572701,1766508545369,-357.68,0.0006,60]
[399572702,1766508545408,-1608.86189004,0.0006,120]
[399572703,1766508545448,-226.74,0.0006,120]
[399572704,1766508545488,-249.79,0.0006,120]
[399572705,1766508545528,-1591.37298291,0.0006,120]
[399572706,1766508545569,-500.0,0.0006,120]
[399572707,1766508545611,-253.0,0.0006,103]
[399572708,1766508545651,-50000.0,0.000601,120]
[399572709,1766508545690,-50000.0,0.0006035,120]
[399572710,1766508545729,-167.0,0.000604,120]
[399572711,1766508545773,-179.0,0.000604,120]
[399572712,1766508545817,-50000.0,0.000606,120]
[399572713,1766508545867,-1107.46193923,0.00060763,120]
[399572714,1766508545912,-8000.0,0.00060785,120]
[399572715,1766508545960,-1166.11812191,0.00060822,120]
[399572716,1766508546005,-50000.0,0.0006085,120]
[399572717,1766508546052,-1000.0,0.00061,120]
[399572718,1766508546094,-150.0,0.00061,120]
[399572719,1766508546136,-300.0,0.00061,120]
[399572720,1766508546179,-25000.0,0.00061,120]
[399572721,1766508546225,-200.0,0.00061,120]
[399572722,1766508546272,-10431.86887318,0.00061,120]
[399572723,1766508546323,-167.0,0.00061,120]
[399572724,1766508546367,-179.0,0.00061,120]
[399572725,1766508546414,-253.0,0.00061,107]
[399572726,1766508546459,-50000.0,0.000611,120]
[399572727,1766508546502,-2725.27,0.00061139,120]
[399572728,1766508546542,-50000.0,0.0006135,120]
[399572729,1766508546580,-1680.0,0.000614,90]
[399572730,1766508546618,-167.0,0.000615,120]
[399572731,1766508546660,-179.0,0.000615,120]
[399572732,1766508546699,-50000.0,0.000616,120]
[399572733,1766508546737,-596.363,0.00061793,120]
[399572734,1766508546776,-20417.0,0.000618,120]
[399572735,1766508546815,-6039.64,0.00061827,120]
[399572736,1766508546856,-50000.0,0.0006185,120]